[Event "WYCC U18 Girls 2019"]
[Site "Mumbai"]
[Date "2019.10.05"]
[Round "5.1"]
[White "Kucharska, Honorata"]
[Black "Radeva, Viktoria"]
[Result "1/2-1/2"]
[ECO "B83"]
[WhiteElo "2114"]
[BlackElo "2277"]
[Annotator "ChessBase"]
[PlyCount "67"]
[EventDate "2019.10.02"]
[EventType "swiss"]
[EventCountry "IND"]
[SourceTitle "playchess.com"]
[Source "ChessBase"]
[SourceQuality "1"]
[TimeControl "40/5400+30:1800+30"]

1. e4 {[%emt 0:00:00]} c5 {[%emt 0:00:00]} 2. Nf3 {[%emt 0:00:00]} e6 {[%emt 0:00:00]} 3. d4 {[%emt 0:00:00]} cxd4 {[%emt 0:00:00]} 4. Nxd4 {[%emt 0:00:02]} Nf6 {[%emt 0:00:00]} 5. Nc3 {[%emt 0:00:07]} d6 {[%emt 0:00:04]} 6. Be2 {[%emt 0:00:41]} Be7 {[%emt 0:00:18]} 7. O-O {[%emt 0:00:48]} Nc6 {[%emt 0:01:05]} 8. Be3 {[%emt 0:00:52]} O-O {[%emt 0:00:17]} 9. f4 {[%emt 0:00:04]} Qc7 {[%emt 0:04:38]} 10. Kh1 {[%emt 0:02:16]} a6 {[%emt 0:01:07]} 11. Qe1 {[%emt 0:01:39]} Bd7 {[%emt 0:11:00]} 12. Qg3 {[%emt 0:05:09]} b5 {[%emt 0:10:38]} 13. a3 {[%emt 0:05:55]} Nxd4 {[%emt 0:06:52]} 14. Bxd4 {[%emt 0:00:36]} Bc6 {[%emt 0:00:56]} 15. Rae1 {[%emt 0:04:33]} Rad8 {[%emt 0:07:32]} 16. Bd3 {[%emt 0:05:10]} g6 {[%emt 0:08:36]} 17. f5 {[%emt 0:15:01]} e5 {[%emt 0:08:44]} 18. Be3 {[%emt 0:00:06]} Qb7 {[%emt 0:12:50]} 19. Bh6 {[%emt 0:05:39]} Rfe8 {[%emt 0:00:35]} 20. Qf3 {[%emt 0:05:01]} d5 {[%emt 0:10:17]} 21. fxg6 {[%emt 0:09:18]} fxg6 {[%emt 0:02:28]} 22. a4 {[%emt 0:02:11]} d4 {[%emt 0:04:38]} 23. axb5 {[%emt 0:04:23]} axb5 {[%emt 0:00:21]} 24. Nd1 {[%emt 0:00:47]} Rd6 {[%emt 0:00:31]} 25. Nf2 {[%emt 0:01:01]} Bd7 {[%emt 0:02:11]} 26. Qg3 {[%emt 0:01:59]} Bd8 {[%emt 0:02:18]} 27. Be2 {[%emt 0:02:02]} Qc7 {[%emt 0:01:51]} 28. Bg4 {[%emt 0:01:39]} Bxg4 {[%emt 0:00:42]} 29. Nxg4 {[%emt 0:00:10]} Nxg4 {[%emt 0:00:12]} 30. Qxg4 {[%emt 0:00:23]} Rf6 {[%emt 0:01:24]} 31. h3 {[%emt 0:05:57]} Qf7 {[%emt 0:01:00]} 32. Rxf6 {[%emt 0:00:50]} Bxf6 {[%emt 0:01:25]} 33. Rf1 {[%emt 0:00:25]} Qe6 {[%emt 0:00:43]} 34. Qe2 {[%emt 0:05:28]} 1/2-1/2

[Event "WYCC U18 Girls 2019"]
[Site "Mumbai"]
[Date "2019.10.05"]
[Round "5.3"]
[White "Harshini A"]
[Black "Munkhzul, Turmunkh"]
[Result "*"]
[ECO "C67"]
[WhiteElo "2230"]
[BlackElo "2332"]
[Annotator "ChessBase"]
[PlyCount "78"]
[EventDate "2019.10.02"]
[EventType "swiss"]
[EventCountry "IND"]
[SourceTitle "playchess.com"]
[Source "ChessBase"]
[SourceQuality "1"]
[TimeControl "40/5400+30:1800+30"]

1. e4 {[%emt 0:00:09]} e5 {[%emt 0:00:00]} 2. Nf3 Nc6 {[%emt 0:00:00]} 3. Bb5 {[%emt 0:00:12]} Nf6 {[%emt 0:00:08]} 4. O-O {[%emt 0:00:21]} Nxe4 {[%emt 0:00:06]} 5. d4 {[%emt 0:00:43]} Nd6 {[%emt 0:00:16]} 6. dxe5 {[%emt 0:00:20]} Nxb5 {[%emt 0:00:52]} 7. a4 {[%emt 0:00:06]} d6 {[%emt 0:02:38]} 8. e6 {[%emt 0:14:24]} Bxe6 {[%emt 0:02:14]} 9. axb5 {[%emt 0:00:05]} Nb8 {[%emt 0:07:24]} 10. Nd4 {[%emt 0:04:31]} Be7 {[%emt 0:04:16]} 11. Re1 {[%emt 0:03:02]} O-O {[%emt 0:02:09]} 12. Rxe6 {[%emt 0:01:45]} fxe6 {[%emt 0:01:07]} 13. Nxe6 {[%emt 0:00:06]} Qc8 {[%emt 0:01:41]} 14. Nxf8 {[%emt 0:01:02]} Bxf8 {[%emt 0:00:30]} 15. Be3 {[%emt 0:03:31]} Nd7 {[%emt 0:03:18]} 16. Qg4 {[%emt 0:02:30]} Nb6 {[%emt 0:12:45]} 17. Qxc8 {[%emt 0:01:51]} Nxc8 {[%emt 0:00:04]} 18. Nc3 {[%emt 0:00:05]} Be7 {[%emt 0:01:28]} 19. Ra4 {[%emt 0:13:13]} Bd8 {[%emt 0:03:08]} 20. Re4 {[%emt 0:10:16]} Kf7 {[%emt 0:01:07]} 21. Rf4+ {[%emt 0:01:43]} Ke8 {[%emt 0:02:24]} 22. Bd4 {[%emt 0:02:03]} g5 {[%emt 0:04:37]} 23. Re4+ {[%emt 0:01:07]} Kf7 {[%emt 0:01:24]} 24. f4 {[%emt 0:01:13]} a6 {[%emt 0:01:21]} 25. fxg5 {[%emt 0:00:09]} Bxg5 {[%emt 0:01:01]} 26. Rg4 {[%emt 0:00:32]} h6 {[%emt 0:03:18]} 27. h4 {[%emt 0:01:12]} Be7 {[%emt 0:09:24]} 28. Nd5 {[%emt 0:06:12]} axb5 {[%emt 0:02:48]} 29. Nxc7 {[%emt 0:01:23]} Ra1+ {[%emt 0:00:43]} 30. Kh2 {[%emt 0:00:13]} d5 {[%emt 0:08:21]} 31. Nxb5 {[%emt 0:08:16]} Nd6 {[%emt 0:02:54]} 32. Rg7+ {[%emt 0:06:28]} Kf8 {[%emt 0:00:08]} 33. Nxd6 {[%emt 0:01:16]} Bxd6+ {[%emt 0:00:05]} 34. g3 {[%emt 0:00:06]} Rd1 {[%emt 0:02:32]} 35. Bf6 {[%emt 0:01:44]} d4 {[%emt 0:11:19]} 36. Rg4 {[%emt 0:05:41]} Rd2+ {[%emt 0:01:33]} 37. Kh3 {[%emt 0:00:09]} Bc5 {[%emt 0:00:15]} 38. b4 {[%emt 0:02:05]} Ba7 {[%emt 0:01:44]} 39. Bg7+ {[%emt 0:01:04]} Ke8 {[%emt 0:01:15]} *

[Event "WYCC U18 Girls 2019"]
[Site "Mumbai"]
[Date "2019.10.05"]
[Round "5.5"]
[White "Shpanko, Nadiia"]
[Black "Afonasieva, Anna"]
[Result "0-1"]
[ECO "B13"]
[WhiteElo "2213"]
[BlackElo "2312"]
[Annotator "ChessBase"]
[PlyCount "58"]
[EventDate "2019.10.02"]
[EventType "swiss"]
[EventCountry "IND"]
[SourceTitle "playchess.com"]
[Source "ChessBase"]
[SourceQuality "1"]
[TimeControl "40/5400+30:1800+30"]

1. e4 {[%emt 0:00:00]} c6 {[%emt 0:00:00]} 2. d4 {[%emt 0:00:00]} d5 {[%emt 0:00:00]} 3. exd5 {[%emt 0:00:00]} cxd5 {[%emt 0:00:00]} 4. c4 {[%emt 0:00:05]} Nf6 {[%emt 0:00:13]} 5. Nc3 {[%emt 0:00:08]} Nc6 {[%emt 0:01:01]} 6. Nf3 {[%emt 0:00:44]} e6 {[%emt 0:07:20]} 7. a3 {[%emt 0:03:46]} Be7 {[%emt 0:07:14]} 8. Bd3 {[%emt 0:08:46]} dxc4 {[%emt 0:00:41]} 9. Bxc4 {[%emt 0:00:06]} O-O {[%emt 0:00:10]} 10. O-O {[%emt 0:00:17]} b6 {[%emt 0:01:52]} 11. b4 {[%emt 0:05:31]} Bb7 {[%emt 0:02:06]} 12. Bb2 {[%emt 0:09:36]} Rc8 {[%emt 0:03:02]} 13. Ba2 {[%emt 0:14:37]} Bd6 {[%emt 0:02:00]} 14. d5 {[%emt 0:11:33]} Ne5 {[%emt 0:20:51]} 15. dxe6 {[%emt 0:10:13]} Nxf3+ {[%emt 0:24:47]} 16. gxf3 {[%emt 0:00:06]} Bxh2+ {[%emt 0:03:36]} 17. Kxh2 {[%emt 0:05:48]} Qc7+ {[%emt 0:00:57]} 18. Kg2 {[%emt 0:06:08]} Qf4 {[%emt 0:08:37]} 19. exf7+ {[%emt 0:00:47]} Kh8 {[%emt 0:00:57]} 20. Nd5 {[%emt 0:14:03]} Nxd5 {[%emt 0:04:26]} 21. Bxd5 {[%emt 0:00:10]} Qg5+ {[%emt 0:00:12]} 22. Kh2 {[%emt 0:00:13]} Qh5+ {[%emt 0:00:21]} 23. Kg3 {[%emt 0:00:13]} Bxd5 {[%emt 0:00:35]} 24. f4 {[%emt 0:01:10]} Qxf7 {[%emt 0:00:29]} 25. Qg4 {[%emt 0:00:45]} Rc6 {[%emt 0:02:39]} 26. f5 {[%emt 0:01:25]} Rc4 {[%emt 0:01:01]} 27. Bd4 {[%emt 0:02:10]} Qc7+ {[%emt 0:01:38]} 28. Kh3 {[%emt 0:00:43]} Rf6 {[%emt 0:00:41]} 29. Qh4 {[%emt 0:01:27]} Rxf5 {[%emt 0:01:14]} 0-1

[Event "WYCC U18 Girls 2019"]
[Site "Mumbai"]
[Date "2019.10.05"]
[Round "5.6"]
[White "Sliwicka, Alicja"]
[Black "Nilssen, Ellen Fredericia"]
[Result "1-0"]
[ECO "C15"]
[WhiteElo "2307"]
[BlackElo "2137"]
[Annotator "ChessBase"]
[PlyCount "53"]
[EventDate "2019.10.02"]
[EventType "swiss"]
[EventCountry "IND"]
[SourceTitle "playchess.com"]
[Source "ChessBase"]
[SourceQuality "1"]
[TimeControl "40/5400+30:1800+30"]

1. e4 {[%emt 0:00:00]} e6 {[%emt 0:00:00]} 2. d4 {[%emt 0:00:00]} d5 {[%emt 0:00:00]} 3. Nc3 {[%emt 0:00:00]} Bb4 {[%emt 0:00:00]} 4. exd5 {[%emt 0:00:00]} exd5 {[%emt 0:00:00]} 5. Bd3 {[%emt 0:00:00]} Ne7 {[%emt 0:05:43]} 6. Qh5 {[%emt 0:00:31]} Nbc6 {[%emt 0:06:40]} 7. a3 {[%emt 0:00:13]} Bxc3+ {[%emt 0:03:11]} 8. bxc3 {[%emt 0:00:07]} Be6 {[%emt 0:04:36]} 9. Rb1 {[%emt 0:00:14]} Na5 {[%emt 0:08:56]} 10. Nf3 {[%emt 0:07:20]} Qd6 {[%emt 0:09:55]} 11. Ng5 {[%emt 0:07:19]} O-O-O {[%emt 0:07:26]} 12. Nxf7 {[%emt 0:08:01]} Bxf7 {[%emt 0:00:47]} 13. Qxf7 {[%emt 0:00:08]} Rdf8 {[%emt 0:09:23]} 14. Qh5 {[%emt 0:01:54]} g6 {[%emt 0:05:46]} 15. Qe5 {[%emt 0:06:35]} Qc6 {[%emt 0:05:06]} 16. O-O {[%emt 0:05:47]} Nf5 {[%emt 0:00:46]} 17. Rb5 {[%emt 0:06:53]} Nc4 {[%emt 0:08:08]} 18. Bxc4 {[%emt 0:00:48]} dxc4 {[%emt 0:00:09]} 19. Rc5 {[%emt 0:00:36]} Qb6 {[%emt 0:01:51]} 20. Bf4 {[%emt 0:01:03]} c6 {[%emt 0:01:09]} 21. Qe6+ {[%emt 0:06:06]} Kd8 {[%emt 0:00:10]} 22. g4 {[%emt 0:04:25]} Ne7 {[%emt 0:05:33]} 23. Qd6+ {[%emt 0:02:46]} Kc8 {[%emt 0:01:20]} 24. Qxe7 {[%emt 0:00:33]} Rxf4 {[%emt 0:00:18]} 25. Qe6+ {[%emt 0:00:10]} Kb8 {[%emt 0:00:37]} 26. Qe5+ {[%emt 0:00:06]} Qc7 {[%emt 0:00:08]} 27. Qxh8+ {[%emt 0:00:08]} 1-0

[Event "WYCC U18 Girls 2019"]
[Site "Mumbai"]
[Date "2019.10.05"]
[Round "5.7"]
[White "Urh, Zala"]
[Black "Vantika Agrawal"]
[Result "*"]
[ECO "E62"]
[WhiteElo "2105"]
[BlackElo "2283"]
[Annotator "ChessBase"]
[PlyCount "73"]
[EventDate "2019.10.02"]
[EventType "swiss"]
[EventCountry "IND"]
[SourceTitle "playchess.com"]
[Source "ChessBase"]
[SourceQuality "1"]
[TimeControl "40/5400+30:1800+30"]

1. d4 {[%emt 0:00:00]} d6 {[%emt 0:00:00]} 2. Nf3 {[%emt 0:00:00]} Nf6 {[%emt 0:00:10]} 3. c4 {[%emt 0:00:00]} g6 {[%emt 0:00:14]} 4. Nc3 {[%emt 0:00:00]} Bf5 {[%emt 0:00:18]} 5. g3 {[%emt 0:05:23]} Bg7 {[%emt 0:00:48]} 6. Bg2 {[%emt 0:00:22]} O-O {[%emt 0:01:01]} 7. O-O {[%emt 0:01:53]} c6 {[%emt 0:02:53]} 8. Nh4 {[%emt 0:04:30]} Be6 {[%emt 0:00:38]} 9. d5 {[%emt 0:05:10]} cxd5 {[%emt 0:00:42]} 10. cxd5 {[%emt 0:00:19]} Bd7 {[%emt 0:00:21]} 11. Be3 {[%emt 0:03:18]} a5 {[%emt 0:05:36]} 12. a4 {[%emt 0:09:01]} Na6 {[%emt 0:00:58]} 13. Bd4 {[%emt 0:01:49]} Nb4 {[%emt 0:07:24]} 14. e4 {[%emt 0:04:37]} Rc8 {[%emt 0:04:45]} 15. Qd2 {[%emt 0:02:24]} e5 {[%emt 0:06:13]} 16. dxe6 {[%emt 0:02:56]} Bxe6 {[%emt 0:01:19]} 17. Rfd1 {[%emt 0:06:30]} Bb3 {[%emt 0:27:56]} 18. Rdc1 {[%emt 0:00:20]} Re8 {[%emt 0:08:42]} 19. Nf3 {[%emt 0:06:41]} Nc6 {[%emt 0:10:51]} 20. Re1 {[%emt 0:04:37]} Nxd4 {[%emt 0:11:43]} 21. Nxd4 {[%emt 0:00:14]} Qb6 {[%emt 0:00:58]} 22. Ncb5 {[%emt 0:05:40]} Bc4 {[%emt 0:00:35]} 23. Rad1 {[%emt 0:00:11]} Rcd8 {[%emt 0:02:17]} 24. b3 {[%emt 0:01:50]} Bxb5 {[%emt 0:00:12]} 25. Nxb5 {[%emt 0:00:05]} Ng4 {[%emt 0:03:41]} 26. h3 {[%emt 0:06:02]} Ne5 {[%emt 0:00:09]} 27. Qd5 {[%emt 0:00:06]} Bf8 {[%emt 0:00:49]} 28. Re3 {[%emt 0:06:10]} Nc6 {[%emt 0:01:48]} 29. Rf3 {[%emt 0:01:16]} Rd7 {[%emt 0:00:27]} 30. h4 {[%emt 0:03:03]} Nb4 {[%emt 0:00:43]} 31. Qc4 {[%emt 0:03:07]} Re5 {[%emt 0:00:46]} 32. Bh3 {[%emt 0:03:38]} d5 {[%emt 0:00:23]} 33. exd5 {[%emt 0:00:51]} Rdxd5 {[%emt 0:00:21]} 34. Rxd5 {[%emt 0:00:14]} Nxd5 {[%emt 0:00:08]} 35. Bg2 {[%emt 0:01:57]} Qc5 {[%emt 0:01:05]} 36. Qxc5 {[%emt 0:04:31]} Bxc5 {[%emt 0:00:05]} 37. Rd3 {[%emt 0:00:08]} *

[Event "WYCC U18 Girls 2019"]
[Site "Mumbai"]
[Date "2019.10.05"]
[Round "5.8"]
[White "Obolentseva, Alexandra"]
[Black "Sowa, Wiktoria"]
[Result "1/2-1/2"]
[ECO "D97"]
[WhiteElo "2282"]
[BlackElo "2016"]
[Annotator "ChessBase"]
[PlyCount "76"]
[EventDate "2019.10.02"]
[EventType "swiss"]
[EventCountry "IND"]
[SourceTitle "playchess.com"]
[Source "ChessBase"]
[SourceQuality "1"]
[TimeControl "40/5400+30:1800+30"]

1. d4 {[%emt 0:00:00]} Nf6 {[%emt 0:00:00]} 2. c4 {[%emt 0:00:00]} g6 {[%emt 0:00:00]} 3. Nc3 {[%emt 0:00:00]} d5 {[%emt 0:00:00]} 4. Nf3 {[%emt 0:00:00]} Bg7 {[%emt 0:00:07]} 5. Qb3 {[%emt 0:00:05]} dxc4 {[%emt 0:01:11]} 6. Qxc4 {[%emt 0:00:09]} O-O {[%emt 0:00:09]} 7. e4 {[%emt 0:00:09]} Nc6 {[%emt 0:00:39]} 8. Be2 {[%emt 0:04:41]} e5 {[%emt 0:01:51]} 9. d5 {[%emt 0:01:42]} Nd4 {[%emt 0:00:58]} 10. Nxd4 {[%emt 0:02:01]} exd4 {[%emt 0:00:05]} 11. Qxd4 {[%emt 0:00:05]} c6 {[%emt 0:00:12]} 12. Qd1 {[%emt 0:00:31]} Re8 {[%emt 0:10:22]} 13. O-O {[%emt 0:01:41]} Nxe4 {[%emt 0:04:40]} 14. Nxe4 {[%emt 0:00:34]} Rxe4 {[%emt 0:00:16]} 15. dxc6 {[%emt 0:04:09]} Rd4 {[%emt 0:02:05]} 16. cxb7 {[%emt 0:03:54]} Bxb7 {[%emt 0:02:53]} 17. Qb3 {[%emt 0:00:06]} Qe7 {[%emt 0:06:52]} 18. Bg5 {[%emt 0:08:08]} Qxg5 {[%emt 0:05:34]} 19. Qxb7 {[%emt 0:00:32]} Rad8 {[%emt 0:01:36]} 20. Qxa7 {[%emt 0:05:10]} Rd2 {[%emt 0:01:57]} 21. Qa6 {[%emt 0:03:29]} Bxb2 {[%emt 0:07:54]} 22. Rab1 {[%emt 0:03:29]} Qf5 {[%emt 0:08:50]} 23. Qb5 {[%emt 0:06:19]} Qc2 {[%emt 0:02:16]} 24. Rbe1 {[%emt 0:03:19]} Kg7 {[%emt 0:10:52]} 25. Qc4 {[%emt 0:01:07]} Qf5 {[%emt 0:00:43]} 26. a4 {[%emt 0:02:14]} Rc8 {[%emt 0:03:50]} 27. Qb5 {[%emt 0:02:31]} Rc5 {[%emt 0:00:56]} 28. Qb7 {[%emt 0:01:14]} Re5 {[%emt 0:05:34]} 29. Bf3 {[%emt 0:03:39]} Rxe1 {[%emt 0:03:45]} 30. Rxe1 {[%emt 0:00:07]} Qc5 {[%emt 0:00:46]} 31. Kh1 {[%emt 0:03:23]} Rxf2 {[%emt 0:02:48]} 32. Qd5 {[%emt 0:02:09]} Qb4 {[%emt 0:01:20]} 33. Qe4 {[%emt 0:00:13]} Qc3 {[%emt 0:03:30]} 34. Rd1 {[%emt 0:04:54]} Rc2 {[%emt 0:01:19]} 35. Qd3 {[%emt 0:01:34]} Qc5 {[%emt 0:02:02]} 36. Qb5 {[%emt 0:01:43]} Qc3 {[%emt 0:01:05]} 37. Qd3 {[%emt 0:00:23]} Qc5 {[%emt 0:00:22]} 38. Qb5 {[%emt 0:00:06]} Qc3 {[%emt 0:00:13]} 1/2-1/2

[Event "WYCC U18 Girls 2019"]
[Site "Mumbai"]
[Date "2019.10.05"]
[Round "5.10"]
[White "Serikbay, Assel"]
[Black "Tarini Goyal"]
[Result "1/2-1/2"]
[ECO "A40"]
[WhiteElo "2208"]
[BlackElo "2128"]
[Annotator "ChessBase"]
[PlyCount "65"]
[EventDate "2019.10.02"]
[EventType "swiss"]
[EventCountry "IND"]
[SourceTitle "playchess.com"]
[Source "ChessBase"]
[SourceQuality "1"]
[TimeControl "40/5400+30:1800+30"]

1. d4 {[%emt 0:00:00]} Nf6 {[%emt 0:00:00]} 2. c4 {[%emt 0:00:00]} e6 {[%emt 0:00:00]} 3. g3 {[%emt 0:00:00]} d5 {[%emt 0:00:00]} 4. Nf3 {[%emt 0:00:00]} Bb4+ {[%emt 0:00:07]} 5. Bd2 {[%emt 0:00:11]} Be7 {[%emt 0:00:26]} 6. Bg2 {[%emt 0:00:21]} O-O {[%emt 0:00:13]} 7. O-O {[%emt 0:00:16]} Nbd7 {[%emt 0:00:37]} 8. Qc2 {[%emt 0:00:40]} c6 {[%emt 0:00:13]} 9. Rd1 {[%emt 0:01:51]} b6 {[%emt 0:01:09]} 10. Bf4 {[%emt 0:01:37]} Ba6 {[%emt 0:01:55]} 11. cxd5 {[%emt 0:02:16]} cxd5 {[%emt 0:00:38]} 12. Ne5 {[%emt 0:00:59]} Rc8 {[%emt 0:01:50]} 13. Nc6 {[%emt 0:03:35]} Nh5 {[%emt 0:05:18]} 14. Bc1 {[%emt 0:04:06]} Nb8 {[%emt 0:02:48]} 15. Nxe7+ {[%emt 0:00:12]} Qxe7 {[%emt 0:00:07]} 16. Nc3 {[%emt 0:00:51]} h6 {[%emt 0:07:01]} 17. Bf3 {[%emt 0:17:35]} Nf6 {[%emt 0:02:45]} 18. Bf4 {[%emt 0:00:12]} b5 {[%emt 0:13:29]} 19. Qd2 {[%emt 0:08:14]} Nbd7 {[%emt 0:03:23]} 20. a3 {[%emt 0:14:42]} Nb6 {[%emt 0:01:17]} 21. e4 {[%emt 0:03:35]} dxe4 {[%emt 0:15:39]} 22. Nxe4 {[%emt 0:00:10]} Nxe4 {[%emt 0:00:23]} 23. Bxe4 {[%emt 0:00:07]} Bb7 {[%emt 0:01:12]} 24. Bd6 {[%emt 0:07:16]} Qxd6 {[%emt 0:00:28]} 25. Bxb7 {[%emt 0:00:06]} Rc7 {[%emt 0:02:31]} 26. Be4 {[%emt 0:00:14]} Rd8 {[%emt 0:03:17]} 27. Rac1 {[%emt 0:10:18]} Rxc1 {[%emt 0:04:36]} 28. Qxc1 {[%emt 0:00:23]} Rc8 {[%emt 0:01:00]} 29. Qd2 {[%emt 0:02:14]} Rc7 {[%emt 0:12:46]} 30. Qa5 {[%emt 0:09:22]} Qd7 {[%emt 0:02:32]} 31. Qd2 {[%emt 0:00:52]} Qd6 {[%emt 0:02:06]} 32. Qa5 {[%emt 0:00:20]} Qd7 {[%emt 0:00:08]} 33. Qd2 {[%emt 0:00:05]} 1/2-1/2

[Event "WYCC U18 Girls 2019"]
[Site "Mumbai"]
[Date "2019.10.05"]
[Round "5.11"]
[White "Pandey, Srishti"]
[Black "Makhija, Aashna"]
[Result "0-1"]
[ECO "A05"]
[WhiteElo "1963"]
[BlackElo "2084"]
[Annotator "NA RC"]
[PlyCount "155"]
[EventDate "2019.10.02"]
[EventType "swiss"]
[EventCountry "IND"]
[SourceTitle "playchess.com"]
[Source "ChessBase"]
[SourceQuality "1"]
[TimeControl "40/5400+30:1800+30"]

1. Nf3 {[%emt 0:00:00]} Nf6 {[%emt 0:00:00]} 2. g3 {[%emt 0:00:00]} d5 {[%emt 0:00:04]} 3. Bg2 {[%emt 0:00:00]} e6 {[%emt 0:00:10]} 4. O-O {[%emt 0:00:00]} Be7 {[%emt 0:00:12]} 5. d3 {[%emt 0:00:00]} O-O {[%emt 0:00:51]} 6. Nbd2 {[%emt 0:00:00]} Nc6 {[%emt 0:00:29]} 7. e4 {[%emt 0:00:47]} dxe4 {[%emt 0:00:25]} 8. dxe4 {[%emt 0:00:04]} e5 {[%emt 0:00:27]} 9. c3 {[%emt 0:00:18]} a5 {[%emt 0:01:20] A07: Réti Opening: New York and Capablanca Systems} 10. Qe2 {[%emt 0:01:17]} Bc5 {[%emt 0:03:20]} 11. Nc4 {[%emt 0:04:52]} Qe7 {[%emt 0:01:34]} 12. Bg5 {[%emt 0:03:23]} h6 {[%emt 0:02:46]} 13. Bxf6 {[%emt 0:00:40]} Qxf6 {[%emt 0:00:19]} 14. Ne3 {[%emt 0:00:27] [#]} Bxe3 $146 {[%emt 0:15:17]} ({Predecessor:} 14... Ne7 15. Rfd1 c6 16. a4 b6 17. Nc4 {0-1 (42) Van Wely,L (2632)-Ganguly,S (2652) Berlin 2015}) 15. fxe3 {[%emt 0:01:27]} Qe7 {[%emt 0:12:03]} 16. Rad1 {[%emt 0:09:10]} Bd7 {[%emt 0:12:36]} 17. Rd2 {[%emt 0:09:38]} Rad8 {[%emt 0:10:04]} 18. Rfd1 {[%emt 0:02:27]} Bc8 {[%emt 0:10:51]} 19. Qb5 {[%emt 0:01:58]} Rxd2 {[%emt 0:03:38]} 20. Rxd2 {[%emt 0:00:07]} Qf6 {[%emt 0:02:01]} 21. a3 {[%emt 0:08:21]} b6 {[%emt 0:01:48]} 22. Rd5 {[%emt 0:03:39]} Bg4 $15 {[%emt 0:05:15]} 23. Qf1 {[%emt 0:04:21]} Ne7 {[%emt 0:02:31]} 24. Rd2 {[%emt 0:02:52]} Nc8 {[%emt 0:00:55]} 25. Rd5 {[%emt 0:12:57]} c6 {[%emt 0:03:20]} 26. Rd3 {[%emt 0:00:58]} Nd6 {[%emt 0:02:11]} 27. Nd2 {[%emt 0:02:32]} Qe7 {[%emt 0:02:06]} 28. Qe1 {[%emt 0:04:03]} a4 {[%emt 0:03:20]} 29. c4 {[%emt 0:06:03]} Be6 {[%emt 0:01:25]} 30. Qc1 {[%emt 0:00:38]} Nb7 {[%emt 0:00:58]} 31. b4 {[%emt 0:00:47]} axb3 {[%emt 0:00:37]} 32. Rxb3 {[%emt 0:00:05]} Na5 {[%emt 0:01:37]} 33. Rb4 {[%emt 0:01:15]} Qc5 {[%emt 0:00:40]} 34. Qc3 {[%emt 0:00:24]} b5 {[%emt 0:00:55]} 35. Bf1 {[%emt 0:00:45]} Rd8 {[%emt 0:00:35]} 36. Kf2 {[%emt 0:01:19]} bxc4 {[%emt 0:00:37]} 37. Ra4 {[%emt 0:01:11]} Nb7 {[%emt 0:00:36]} 38. Nxc4 {[%emt 0:00:09]} f6 {[%emt 0:00:30]} 39. Qb4 {[%emt 0:00:37]} Qxb4 {[%emt 0:00:32]} 40. axb4 {[%emt 0:00:09]} Bxc4 {[%emt 0:00:30]} 41. Bxc4+ {[%emt 0:30:01]} Kh7 {[%emt 0:02:48]} 42. Ke2 {[%emt 0:00:00]} Nd6 {[%emt 0:02:35]} 43. Be6 {[%emt 0:00:00]} Rb8 {[%emt 0:11:24]} 44. h4 {[%emt 0:00:00]} h5 {[%emt 0:03:02]} 45. Kf3 {[%emt 0:00:00]} Kg6 {[%emt 0:02:24]} 46. g4 {[%emt 0:00:00]} hxg4+ {[%emt 0:01:53]} 47. Kxg4 {[%emt 0:00:00]} Kh6 {[%emt 0:01:36]} 48. Kf3 {[%emt 0:00:00]} Rb7 {[%emt 0:03:46]} 49. Bg4 {[%emt 0:00:00]} g6 {[%emt 0:00:55]} 50. Be6 {[%emt 0:02:51]} Kh5 {[%emt 0:01:34]} 51. Ra6 {[%emt 0:00:29]} Rxb4 {[%emt 0:00:46]} 52. Rxc6 {[%emt 0:00:06]} Nxe4 {[%emt 0:00:45]} 53. Bd5 {[%emt 0:01:18]} f5 {[%emt 0:01:12]} 54. Bf7 {[%emt 0:00:05]} Kxh4 {[%emt 0:00:18]} 55. Bxg6 {[%emt 0:00:06]} Kg5 {[%emt 0:02:32]} 56. Be8 {[%emt 0:01:22]} Nf6 {[%emt 0:00:21]} 57. Bf7 {[%emt 0:00:38]} e4+ {[%emt 0:00:38]} 58. Kg3 {[%emt 0:02:24]} Rb2 {[%emt 0:00:14]} 59. Rc3 {[%emt 0:02:15]} Re2 {[%emt 0:00:40]} 60. Bc4 {[%emt 0:00:03]} Rb2 {[%emt 0:00:21]} 61. Bf7 {[%emt 0:00:27]} Re2 {[%emt 0:00:24]} 62. Bc4 {[%emt 0:00:09]} Nh5+ {[%emt 0:00:21]} 63. Kh3 {[%emt 0:00:06]} Rf2 {[%emt 0:00:30]} 64. Bf7 {[%emt 0:07:23]} Nf6 {[%emt 0:00:17]} 65. Rc8 {[%emt 0:01:11]} Rf3+ {[%emt 0:00:20]} 66. Kg2 {[%emt 0:00:04]} Rxe3 {[%emt 0:00:12]} 67. Kf2 {[%emt 0:00:10]} Ng4+ {[%emt 0:00:44]} 68. Kf1 {[%emt 0:00:01]} Rf3+ {[%emt 0:01:04]} 69. Ke2 {[%emt 0:00:05]} Rf2+ {[%emt 0:00:17]} 70. Ke1 {[%emt 0:00:03]} Rb2 {[%emt 0:00:25]} 71. Be6 {[%emt 0:00:19]} Kf4 {[%emt 0:00:53]} 72. Ra8 {[%emt 0:00:27]} Ne5 {[%emt 0:00:24]} 73. Kd1 {[%emt 0:01:13]} Nd3 {[%emt 0:00:46]} 74. Bc4 {[%emt 0:00:12]} Ke3 {[%emt 0:00:27]} 75. Bxd3 {[%emt 0:00:08]} Rd2+ {[%emt 0:00:16]} 76. Ke1 {[%emt 0:00:04]} Rxd3 {[%emt 0:00:08]} 77. Rh8 {[%emt 0:00:25]} f4 {[%emt 0:00:25]} 78. Rh1 {[%emt 0:00:47]} 0-1